bitfinex/quotes_ETHUSD_20241119
["timestamp","ask_amount","ask_price","bid_price","bid_amount"]
[1732000105659,3.19838,3126.6,3126.2,35.0]
[1732000106159,3.53210922,3126.7,3126.2,35.0]
[1732000106325,3.19847,3126.5,3126.2,35.0]
[1732000106729,0.8194,3126.6,3126.2,35.0]
[1732000106954,3.19858,3126.4,3126.2,35.0]
[1732000107260,0.8194,3126.6,3125.9,3.19904]
[1732000107261,4.01782,3126.6,3125.9,3.19904]
[1732000107443,4.01782,3126.6,3125.9,0.319914]
[1732000107444,0.8194,3126.6,3125.9,0.319914]
[1732000107614,0.33377922,3126.7,3126.0,38.96737]
[1732000107814,0.33377922,3126.7,3126.2,3.19872]
[1732000108771,0.33377922,3126.7,3126.3,35.0]
[1732000109268,0.33377922,3126.7,3126.3,38.19865]
[1732000109571,0.33377922,3126.7,3126.3,35.0]
[1732000111742,3.19856,3126.5,3126.3,35.0]
[1732000111941,3.97881,3126.6,3126.3,35.0]
[1732000112665,3.97881,3126.6,3125.7,0.7959]
[1732000112666,0.7804,3126.6,3125.7,0.7959]
[1732000112975,0.33377922,3126.7,3126.3,3.19864]
[1732000113723,0.33377922,3126.7,3126.5,3.19845]
[1732000114334,0.33377922,3126.7,3126.3,3.19864]
[1732000115449,0.33377922,3126.7,3126.4,3.51785]
[1732000116634,0.33377922,3126.7,3126.4,0.3193]
[1732000116797,4.28360922,3126.7,3126.4,0.3193]
[1732000117144,3.19837,3126.6,3126.4,0.3193]
[1732000118470,4.28353922,3126.7,3126.4,0.3193]
[1732000119880,1.08527922,3126.7,3126.2,0.3193]
[1732000120086,1.08527922,3126.7,3126.2,3.51806]
[1732000120297,1.08527922,3126.7,3126.2,0.3193]
[1732000120460,0.33377922,3126.7,3126.4,0.3193]
[1732000120877,0.33377922,3126.7,3126.6,0.3193]
[1732000121763,0.33377922,3126.7,3126.6,3.51766]
[1732000122097,0.33377922,3126.7,3126.6,0.3193]
[1732000123058,0.33377922,3126.7,3126.5,0.3193]
[1732000123896,0.33377922,3126.7,3126.4,0.3193]
[1732000124066,0.33377922,3126.7,3126.5,35.3193]
[1732000125365,4.02726,3126.6,3126.5,35.3193]
[1732000125904,0.8289,3126.6,3126.5,35.3193]
[1732000126269,0.33377922,3126.7,3126.5,35.3193]
[1732000128771,0.33377922,3126.7,3126.6,3.19836]
[1732000129068,0.33377922,3126.7,3126.6,3.51766]
[1732000129313,0.33377922,3126.7,3126.6,4.189281]
[1732000129871,0.33377922,3126.7,3126.6,0.990921]
[1732000130071,0.33377922,3126.7,3126.5,0.3193]
[1732000131011,0.33377922,3126.7,3126.5,3.51775]
[1732000131371,0.33377922,3126.7,3126.4,3.19855]
[1732000131372,0.33377922,3126.7,3126.6,3.51766]
[1732000131570,0.33377922,3126.7,3126.6,4.189281]
[1732000132408,0.33377922,3126.7,3126.6,5.016581]
[1732000132822,0.33377922,3126.7,3126.6,8.016581]
[1732000134820,3.96013,3128.0,3127.3,3.19756]
[1732000134976,0.3338105,3127.7,3127.4,0.8034]
[1732000135178,0.3338105,3127.7,3127.5,3.19744]
[1732000136930,0.3338105,3127.7,3127.5,3.5496653]
[1732000139871,0.3338105,3127.7,3127.5,0.3522253]
[1732000140077,0.3338105,3127.7,3127.4,0.8034]
[1732000140435,0.3338105,3127.7,3127.2,3.0]
[1732000140436,3.5310505,3127.7,3127.2,3.0]
[1732000141106,3.5310505,3127.7,3127.1,3.7508]
[1732000141278,3.5310505,3127.7,3127.1,6.94863]
[1732000142525,0.3338105,3127.7,3127.2,3.19774]
[1732000142694,0.3338105,3127.7,3127.1,3.7508]
[1732000142899,0.3338105,3127.7,3127.3,3.19764]
[1732000145819,0.3338105,3127.7,3127.5,3.19741]
[1732000147343,0.3338105,3127.7,3127.3,3.19764]
[1732000149032,0.3338105,3127.7,3127.4,3.19753]
[1732000149942,0.3338105,3127.7,3127.4,3.19748]
[1732000150135,0.3338105,3127.7,3127.5,3.19737]
[1732000150886,0.3338105,3127.7,3127.4,0.639512]
[1732000151445,0.3338105,3127.7,3127.3,3.19764]
[1732000153088,0.3338105,3127.7,3127.1,7.211982]
[1732000153089,0.7609,3127.6,3127.1,7.211982]
[1732000153382,0.7609,3127.6,3127.1,6.51711]
[1732000154689,0.7609,3127.6,3127.2,3.19766]
[1732000154888,0.7609,3127.6,3127.1,6.51711]
[1732000156488,0.3338105,3127.7,3127.1,6.51711]
[1732000156785,0.3338105,3127.7,3127.4,4.02812]
[1732000156971,0.3338105,3127.7,3127.4,4.34742]
[1732000158608,0.3338105,3127.7,3127.4,3.51682]
[1732000158808,0.3338105,3127.7,3127.3,0.3193]
[1732000159117,3.5310605,3127.7,3127.3,0.3193]
[1732000159774,0.3338105,3127.7,3127.3,0.3193]
[1732000160413,0.3338105,3127.7,3127.3,3.51692]
[1732000160711,0.3338105,3127.7,3127.5,3.19743]
[1732000161222,0.3338105,3127.7,3127.4,0.7674]
[1732000161223,0.3338105,3127.7,3127.4,3.9649]
[1732000161565,0.3338105,3127.7,3127.5,3.19739]
[1732000161799,0.3338105,3127.7,3127.5,4.0427055]
[1732000162785,0.3338105,3127.7,3127.5,0.8453155]
[1732000162987,0.3338105,3127.7,3127.4,3.0]
[1732000163381,0.3338105,3127.7,3127.4,6.19746]
[1732000164412,0.3338105,3127.7,3127.5,3.19737]
[1732000165214,0.3338105,3127.7,3127.5,3.19741]
[1732000165597,0.3338105,3127.7,3127.4,3.19753]
[1732000165802,0.3338105,3127.7,3127.4,4.3109425]
[1732000171460,0.3338105,3127.7,3127.4,1.1134125]
[1732000171754,0.3338105,3127.7,3127.3,6.51691]
[1732000172860,0.7684,3127.6,3127.2,3.0]
[1732000176319,0.7684,3127.6,3127.3,3.19764]
[1732000176649,0.7684,3127.6,3127.2,3.0]
[1732000177928,0.7684,3127.6,3127.2,6.19773]
[1732000178371,0.7684,3127.6,3127.2,3.0]
[1732000179358,0.7684,3127.6,3127.3,35.0]
[1732000182196,0.7684,3127.6,3127.3,38.19756]
[1732000182492,0.3338105,3127.7,3127.4,3.19752]
[1732000183165,0.3338105,3127.7,3127.5,38.19743]
[1732000183370,0.3338105,3127.7,3127.5,38.97083]
[1732000183565,0.3338105,3127.7,3127.6,3.14099947]
[1732000185000,0.3338105,3127.7,3127.6,6.65762947]
[1732000187704,0.3338105,3127.7,3127.6,3.46029947]
[1732000187923,0.3338105,3127.7,3127.5,35.0]
[1732000188165,0.8087,3127.6,3127.5,38.0]
[1732000189970,0.3338105,3127.7,3127.5,38.0]
[1732000190231,0.3338105,3127.7,3127.5,38.3193]
[1732000190435,0.3338105,3127.7,3127.6,3.14099947]
[1732000191402,0.3338105,3127.7,3127.5,38.3193]
[1732000191588,0.3338105,3127.7,3127.3,0.3193]
[1732000191797,3.5310405,3127.7,3127.3,0.3193]
[1732000192131,0.3338105,3127.7,3127.5,3.0]
[1732000195626,0.3338105,3127.7,3127.5,38.0]
[1732000196205,0.3338105,3127.7,3127.5,39.669429]
[1732000197525,0.3338105,3127.7,3127.5,42.866779]
[1732000199006,0.3338105,3127.7,3127.6,3.99833]
[1732000199210,0.3338105,3127.7,3127.6,4.31763]
[1732000202930,0.3338105,3127.7,3127.6,39.31763]
[1732000203134,0.3338105,3127.7,3127.6,42.45862947]
[1732000203722,0.3338105,3127.7,3127.6,38.46029947]
[1732000203947,0.3338105,3127.7,3127.6,38.14099947]
[1732000204134,0.7852,3127.6,3127.2,3.0]
[1732000204338,0.7852,3127.6,3127.2,6.19774]
[1732000204648,0.7852,3127.6,3127.3,35.0]
[1732000204820,3.9826,3127.6,3127.3,35.0]
[1732000205226,3.19745,3127.5,3127.3,35.0]
[1732000205745,3.9826,3127.6,3127.3,35.0]
[1732000205952,3.19744,3127.5,3127.3,35.0]
[1732000206270,0.7852,3127.6,3127.2,3.0]
[1732000206759,0.7852,3127.6,3127.2,38.0]
[1732000207063,3.98255,3127.6,3127.2,38.0]
[1732000207564,0.7852,3127.6,3127.2,38.0]
[1732000207874,0.7852,3127.6,3127.2,41.19774]
[1732000209138,0.7852,3127.6,3127.2,38.0]
[1732000209967,3.19744,3127.5,3127.0,3.51722]
[1732000210267,3.19744,3127.5,3126.9,3.3193]
[1732000210436,3.19744,3127.5,3127.1,35.0]
[1732000211090,0.7852,3127.6,3127.1,35.0]
[1732000211392,0.7852,3127.6,3127.2,3.19765]
[1732000211548,0.3338105,3127.7,3127.4,3.19747]
[1732000213078,0.3338105,3127.7,3127.2,4.00095]
[1732000213801,0.3338105,3127.7,3127.3,3.19764]
[1732000215735,0.3338105,3127.7,3127.4,3.51683]
[1732000215876,0.3338105,3127.7,3127.4,0.3193]
[1732000217978,0.3338105,3127.7,3127.6,3.19733]
[1732000218179,0.3338105,3127.7,3127.6,3.836363]
[1732000219212,0.3338105,3127.7,3127.6,0.639033]
[1732000219531,0.3338105,3127.7,3127.6,0.3193]
[1732000221289,0.3338105,3127.7,3127.4,0.3193]
[1732000221598,0.3338105,3127.7,3127.3,4.32454664]
[1732000221599,0.3338105,3127.7,3127.6,0.3193]
[1732000223240,4.3225405,3127.7,3127.6,0.3193]
[1732000223419,3.19733,3127.6,3127.5,35.0]
[1732000223729,1.1253105,3127.7,3126.9,0.7923]
[1732000223730,1.1253105,3127.7,3127.2,0.3193]
[1732000224229,1.1253105,3127.7,3127.4,0.3193]
[1732000224441,0.3338105,3127.7,3127.4,2.7998647]
[1732000225793,0.3338105,3127.7,3127.4,0.3193]
[1732000226236,0.3338105,3127.7,3127.6,0.3193]
[1732000227805,3.19748,3127.5,3127.3,0.3193]
[1732000228292,3.19748,3127.5,3127.3,35.3193]
[1732000228494,0.7843,3127.4,3127.3,35.3193]
[1732000229573,3.19748,3127.5,3127.3,35.3193]
[1732000231624,3.19748,3127.5,3127.3,0.3193]
[1732000232022,3.19748,3127.5,3127.3,35.3193]
[1732000233070,3.19754,3127.4,3127.3,35.3193]
[1732000233827,3.97899,3127.6,3127.3,35.3193]
[1732000234044,0.3338105,3127.7,3127.3,35.3193]
[1732000234245,0.3338105,3127.7,3127.3,38.46029947]
[1732000236276,0.3338105,3127.7,3127.5,0.3193]
[1732000236777,0.3338105,3127.7,3127.6,1.0786]
[1732000237088,0.3338105,3127.7,3127.6,36.0786]
[1732000237285,0.3338105,3127.7,3127.6,39.21959947]
[1732000239656,0.3338105,3127.7,3127.6,43.74147611]
[1732000241277,0.3338105,3127.7,3127.6,42.41692947]
[1732000242864,0.3338105,3127.7,3127.6,7.41692947]
[1732000243198,0.3338105,3127.7,3127.6,4.27593]
[1732000243496,0.3338105,3127.7,3127.6,39.27593]
[1732000244868,0.3338105,3127.7,3127.6,35.3193]
[1732000245066,1.1221105,3127.7,3127.3,0.3193]
[1732000245294,1.1221105,3127.7,3127.3,0.80345666]
[1732000246271,4.3193705,3127.7,3127.2,0.3193]
[1732000246470,3.1974,3127.6,3127.2,0.3193]
[1732000247173,1.1221105,3127.7,3127.4,0.3193]
[1732000247365,3.19741,3127.6,3127.4,0.3193]
[1732000248477,3.19744,3127.5,3127.4,0.3193]
[1732000249006,1.1221105,3127.7,3127.4,0.3193]
[1732000249302,4.3194205,3127.7,3127.4,0.3193]
[1732000249504,3.19735,3127.6,3127.4,0.3193]
[1732000250396,1.1221105,3127.7,3127.2,0.3193]
[1732000250703,4.3193705,3127.7,3127.4,0.3193]
[1732000252263,4.3193605,3127.7,3127.4,0.3193]
[1732000253001,3.19734,3127.6,3127.2,0.3193]
[1732000253359,3.98557,3127.7,3127.4,0.3193]
[1732000253814,0.7883,3127.7,3127.4,0.3193]
[1732000254106,3.19742,3127.6,3127.4,0.3193]
[1732000255362,3.19744,3127.5,3127.4,0.3193]
[1732000255678,3.19742,3127.6,3127.4,0.3193]
[1732000256090,3.19744,3127.5,3127.4,0.3193]
[1732000256694,3.19724,3127.7,3127.4,0.3193]
[1732000256867,3.19734,3127.6,3127.4,0.3193]
[1732000257074,3.19713,3127.8,3127.4,0.3193]
[1732000257609,3.19713,3127.8,3127.4,0.82635254]
[1732000257980,3.19736,3127.6,3127.4,0.3193]
[1732000258189,3.98764,3127.5,3127.4,0.3193]
[1732000259969,3.19754,3127.4,3127.3,35.0]
[1732000260169,3.19774,3127.3,3127.1,0.3193]
[1732000260521,3.19725,3127.7,3126.6,3.869891]
[1732000260522,0.8102,3127.0,3126.8,0.3193]
[1732000261208,3.19805,3126.9,3126.8,0.3193]
[1732000261407,3.19805,3126.9,3126.5,0.3193]
[1732000262106,0.8102,3127.0,3126.5,0.753864]
[1732000262290,4.00816,3127.0,3126.5,0.753864]
[1732000262496,4.00816,3127.0,3126.5,3.753864]
[1732000265541,0.8102,3127.0,3126.5,6.952314]
[1732000265681,3.19785,3127.1,3126.5,6.952314]
[1732000266028,3.19764,3127.4,3126.7,3.51755]
[1732000266199,3.19764,3127.4,3126.7,0.3193]
[1732000266408,3.19745,3127.5,3127.0,1.1361]
[1732000268115,0.7525,3127.6,3127.0,1.1361]
[1732000268413,3.19754,3127.4,3127.0,1.1361]
[1732000269654,3.19767,3127.3,3127.0,1.1361]
[1732000269866,3.19754,3127.4,3127.0,1.1361]
[1732000270062,3.19785,3127.1,3127.0,0.3193]
[1732000271111,3.19795,3127.0,3126.7,0.3193]
[1732000271566,3.19806,3126.9,3126.7,0.3193]
[1732000272662,3.95117,3127.2,3126.7,0.3193]
[1732000272968,3.19787,3127.1,3126.7,0.3193]
[1732000273316,3.95117,3127.2,3126.7,0.3193]
[1732000273519,3.19797,3127.0,3126.7,0.3193]
[1732000276120,3.19815,3126.8,3126.7,0.3193]
[1732000278115,3.19836,3126.6,3126.4,0.3193]
[1732000279443,3.19846,3126.5,3126.4,0.3193]
[1732000280493,3.19856,3126.4,3126.3,0.00583771]
[1732000282749,3.19757,3127.4,3126.8,0.7717]
[1732000283091,3.19744,3127.5,3126.5,0.3193]
[1732000283288,3.19802,3127.0,3126.5,0.3193]
[1732000283606,3.96142,3127.1,3126.5,0.3193]
[1732000283815,3.19814,3126.9,3126.4,0.7717]
[1732000284104,3.19834,3126.7,3126.4,0.7717]
[1732000286240,3.19834,3126.7,3126.5,0.3193]
[1732000286792,3.19836,3126.6,3126.3,0.00583771]
[1732000287127,4.01696,3126.6,3126.3,0.00583771]
[1732000287329,3.19856,3126.4,3126.3,0.00583771]
[1732000288825,4.01696,3126.6,3126.3,0.00583771]
[1732000289141,3.19836,3126.6,3126.3,0.00583771]
[1732000289505,0.33385179,3126.5,3126.4,0.7769]
[1732000291065,1.13745179,3126.5,3126.3,0.00583771]
[1732000291337,0.33385179,3126.5,3126.3,0.00583771]
[1732000294056,3.19856,3126.4,3126.3,0.00583771]
[1732000300341,3.53242976,3126.4,3126.3,0.00583771]
[1732000301345,4.36232976,3126.4,3126.3,0.00583771]
[1732000313907,4.04340176,3126.4,3126.3,0.00583771]
[1732000314909,3.21350176,3126.4,3126.3,0.00583771]
[1732000318166,3.54576777,3126.4,3126.3,0.00583771]
[1732000318480,8.67269017,3126.4,3126.3,0.00583771]
[1732000318639,9.22269017,3126.4,3126.3,0.00583771]
[1732000319785,4.33666777,3126.4,3126.3,0.00583771]
[1732000319934,4.00440176,3126.4,3126.3,0.00583771]
[1732000320679,5.33042416,3126.4,3126.3,0.00583771]
[1732000322443,4.00440176,3126.4,3126.3,0.00583771]
[1732000326743,3.21350176,3126.4,3126.3,0.00583771]
[1732000327248,4.53952416,3126.4,3126.3,0.00583771]
[1732000327874,3.21350176,3126.4,3126.3,0.00583771]
[1732000329263,0.33386976,3126.4,3126.3,0.00583771]
[1732000330951,3.53242976,3126.4,3126.3,0.00583771]
[1732000332392,0.33386976,3126.4,3126.3,0.00583771]
[1732000333469,0.33386976,3126.4,3126.3,1.16076648]
[1732000334995,0.33386976,3126.4,3126.3,0.80833771]
[1732000336454,0.33386976,3126.4,3126.3,1.12793771]
[1732000337294,3.53242976,3126.4,3126.3,1.12793771]
[1732000337794,0.33386976,3126.4,3126.3,1.12793771]
[1732000340558,3.53242976,3126.4,3126.3,1.12793771]
[1732000340758,3.53242976,3126.4,3126.3,0.00583771]
[1732000352638,0.33386976,3126.4,3126.3,0.00583771]
[1732000353338,3.53242976,3126.4,3126.3,0.00583771]
[1732000355163,0.33386976,3126.4,3126.3,0.00583771]
[1732000356802,0.33386976,3126.4,3126.3,0.32543771]
[1732000358051,3.19837,3126.6,3126.4,0.58154924]
[1732000358456,3.19826,3126.7,3126.4,0.58154924]
[1732000363123,3.19806,3126.9,3126.4,0.58154924]
[1732000363280,3.198,3127.0,3126.6,0.3196]
[1732000363478,3.19785,3127.1,3126.6,0.3196]
[1732000363479,3.19806,3126.9,3126.6,0.3196]
[1732000363823,3.19806,3126.9,3126.5,0.8122]
[1732000364615,3.19806,3126.9,3126.5,1.1318]
[1732000366633,3.19785,3127.1,3126.6,3.19836]
[1732000366938,3.19785,3127.1,3126.7,0.3196]
[1732000367433,3.19775,3127.2,3126.7,0.3196]
[1732000367798,3.19775,3127.2,3126.6,0.3196]
[1732000367991,3.19775,3127.2,3126.6,0.82799429]
[1732000368190,3.19766,3127.3,3126.7,1.0715]
[1732000368391,3.19766,3127.3,3126.8,0.7519]
[1732000369431,3.19746,3127.5,3126.8,0.7519]
[1732000369432,3.1976,3127.4,3126.8,0.7519]
[1732000369668,3.1976,3127.4,3126.9,0.426969]
[1732000370094,3.19782,3127.2,3126.9,0.426969]
[1732000370369,3.19782,3127.2,3126.8,0.7519]
[1732000370370,3.19782,3127.2,3126.8,35.7519]
[1732000370726,3.19788,3127.1,3126.8,35.7519]
[1732000371373,3.19805,3127.0,3126.8,35.7519]
[1732000371578,3.19788,3127.1,3126.8,35.7519]
[1732000371746,3.19797,3127.0,3126.8,35.7519]
[1732000372947,3.19788,3127.1,3126.8,35.7519]
[1732000373352,3.19788,3127.1,3126.8,37.88152121]
[1732000373684,3.53193067,3127.1,3126.8,37.88152121]
[1732000374487,0.33405067,3127.1,3126.8,37.88152121]
[1732000374980,3.53190067,3127.1,3126.8,37.88152121]
[1732000375162,0.33405067,3127.1,3126.8,37.88152121]
[1732000375398,0.33405067,3127.1,3126.9,3.14099947]
[1732000378619,3.53193067,3127.1,3126.8,2.88152121]
[1732000378926,3.19795,3127.0,3126.8,0.7519]
[1732000379490,3.19805,3126.9,3126.8,0.7519]
[1732000380655,3.53197067,3127.1,3126.8,0.7519]
[1732000380962,3.19796,3127.0,3126.8,0.7519]
[1732000384137,0.33405067,3127.1,3126.8,0.7519]
[1732000385768,3.53193067,3127.1,3126.8,0.7519]
[1732000386268,0.33405067,3127.1,3126.8,0.7519]
[1732000386597,3.53190067,3127.1,3126.8,0.7519]
[1732000387171,3.53190067,3127.1,3126.9,0.3196]
[1732000389185,0.33405067,3127.1,3126.9,0.3196]
[1732000391778,3.19795,3127.0,3126.9,0.3196]
[1732000391957,3.19795,3127.0,3126.8,0.3196]
[1732000392168,3.19805,3126.9,3126.8,0.3196]
[1732000392705,3.19826,3126.7,3126.5,0.7616]
[1732000393401,3.19846,3126.5,3126.4,0.90114924]
[1732000396316,3.19846,3126.5,3126.4,0.58154924]
[1732000398920,3.98546,3126.5,3126.4,0.58154924]
[1732000402528,4.54546,3126.5,3126.4,0.58154924]
[1732000403074,7.54546,3126.5,3126.4,0.58154924]
[1732000403821,6.99546,3126.5,3126.4,0.58154924]
[1732000404322,8.3176924,3126.0,3125.9,0.00537683]
[1732000407816,6.99167,3126.0,3125.9,0.00537683]
[1732000408716,7.32574972,3126.0,3125.9,0.00537683]
[1732000410022,8.65177212,3126.0,3125.9,0.00537683]
[1732000410520,7.32574972,3126.0,3125.9,0.00537683]
[1732000410687,8.65177212,3126.0,3125.9,0.00537683]
[1732000413679,8.60177212,3126.0,3125.9,0.00537683]
[1732000415953,8.61177212,3126.0,3125.9,0.00537683]
[1732000416593,3.2001,3124.9,3124.8,0.7721]
[1732000416793,3.2001,3124.9,3124.4,0.7721]
[1732000416794,3.20039,3124.7,3124.4,0.7721]
[1732000416995,3.20044,3124.6,3124.4,0.7721]
[1732000417445,3.20044,3124.6,3124.2,35.0]
[1732000417446,3.20051,3124.5,3124.2,35.0]
[1732000417763,3.20051,3124.5,3123.5,0.7721]
[1732000417764,3.20143,3123.6,3123.5,0.7721]
[1732000418013,1.3260224,3123.6,3123.0,0.7721]
[1732000418167,3.20202,3123.1,3122.8,0.0652769]
[1732000418328,3.20215,3122.9,3122.8,0.0652769]
[1732000419221,3.20215,3122.9,3122.8,6.9e-06]
[1732000419222,7.51515,3122.9,3122.8,6.9e-06]
[1732000419532,7.51515,3122.9,3121.5,0.7721]
[1732000419533,3.20307,3122.0,3121.5,0.7721]
[1732000419739,1.3260224,3122.0,3121.5,35.7721]
[1732000419933,1.3260224,3122.5,3121.6,3.14099947]
[1732000420128,3.20269,3122.4,3121.7,3.20337]
[1732000420328,3.20277,3122.3,3121.8,0.63443695]
[1732000420521,3.20277,3122.3,3121.6,3.14099947]
[1732000420522,3.20297,3122.2,3121.6,3.14099947]
[1732000420723,3.20299,3122.1,3121.6,3.14099947]
[1732000421362,3.20266,3122.4,3121.5,35.7721]
[1732000421568,2.88039256,3122.5,3121.5,35.7721]
[1732000421569,3.20298,3122.1,3121.5,35.7721]
[1732000421723,3.20276,3122.3,3121.5,35.7721]
[1732000422058,3.20295,3122.2,3121.5,38.91309947]
[1732000422364,3.20322,3121.9,3121.5,38.91309947]
[1732000422526,3.20294,3122.2,3121.6,0.60885423]
[1732000422727,3.20284,3122.3,3121.6,0.60885423]
[1732000422922,6.08295256,3122.5,3121.6,0.60885423]
[1732000423122,3.20306,3122.1,3121.6,0.60885423]
[1732000423564,3.20306,3122.1,3121.5,35.7721]
[1732000423926,0.3343327,3122.0,3121.5,35.7721]
[1732000424282,3.5374027,3122.0,3121.5,35.7721]
[1732000424778,0.3343327,3122.0,3121.5,38.9756]
[1732000425120,0.3343327,3122.0,3121.6,3.2034]
[1732000425447,0.3343327,3122.0,3121.5,38.9756]
[1732000425774,0.3343327,3122.0,3121.5,35.7721]
[1732000426126,3.20318,3121.9,3121.5,35.7721]
[1732000427641,3.20318,3121.9,3121.5,0.7721]
[1732000428125,0.3343327,3122.0,3121.5,0.7721]
[1732000428936,0.3343327,3122.0,3121.5,3.97567]
[1732000429281,0.3343327,3122.0,3121.5,0.7721]
[1732000429995,3.66129256,3121.9,3120.9,0.7527]
[1732000430140,3.20351,3121.6,3120.9,0.7527]
[1732000430336,3.21328,3121.8,3120.9,0.7527]
[1732000430539,3.20352,3121.6,3120.9,38.95685]
[1732000430779,3.20352,3121.6,3120.9,35.7527]
[1732000430991,3.20352,3121.6,3117.8,4.29587516]
[1732000430992,3.20388,3121.3,3120.6,3.20448]
[1732000431143,3.2037,3121.4,3120.5,3.9786]
[1732000431348,3.20397,3121.2,3120.5,3.9786]
[1732000431544,0.3524052,3121.3,3120.6,35.0]
[1732000431885,3.63889256,3121.3,3120.0,3.2051]
[1732000432186,3.9623,3121.3,3120.4,3.2047]
[1732000432344,3.20401,3121.1,3120.4,3.2047]
[1732000432537,0.7585,3121.3,3120.4,3.2047]
[1732000432790,3.2037,3121.4,3119.9,0.7922]
[1732000433110,3.20351,3121.6,3120.8,3.98649]
[1732000433258,3.20359,3121.5,3120.8,3.98649]
[1732000433971,6.96908,3121.7,3120.8,0.7822]
[1732000434147,3.20361,3121.5,3120.8,3.98649]
[1732000434349,6.96908,3121.7,3120.9,3.20418]
[1732000434551,0.7657,3121.7,3121.0,3.2041]
[1732000434893,3.96908,3121.7,3121.0,3.2041]
[1732000435344,3.20358,3121.5,3120.8,3.98648]
[1732000436260,3.96908,3121.7,3120.9,3.20412]
[1732000436461,6.20328,3121.8,3121.1,3.20395]
[1732000437095,3.0,3121.8,3120.8,0.7822]
[1732000437255,3.20329,3121.8,3120.8,0.7822]
[1732000437608,3.20333,3121.8,3121.0,3.20401]
[1732000438390,6.08366256,3121.9,3121.0,3.20401]
[1732000438595,3.20365,3121.5,3120.8,0.7822]
[1732000438799,3.20352,3121.6,3120.9,3.20418]
[1732000439089,3.20352,3121.6,3121.0,3.20407]
[1732000439287,0.33429044,3121.5,3121.0,3.20407]
[1732000439490,0.33429044,3121.5,3121.0,3.20409]
[1732000439698,0.33429044,3121.5,3120.8,0.7822]
[1732000439699,0.33429044,3121.5,3121.3,3.20379]
[1732000439860,0.33429044,3121.5,3121.1,3.20399]
[1732000440062,0.33429044,3121.5,3121.4,3.20369]
[1732000440579,0.33429044,3121.5,3121.2,0.8146]
[1732000440580,0.33429044,3121.5,3121.3,3.20373]
[1732000440748,0.33429044,3121.5,3121.4,3.20369]
[1732000440956,0.33429044,3121.5,3121.2,0.8146]
[1732000441157,0.33429044,3121.5,3120.9,3.99943]
[1732000441379,3.53789044,3121.5,3120.9,0.7953]
[1732000441747,3.2037,3121.4,3120.9,0.7953]
[1732000443268,0.33429044,3121.5,3120.9,0.7953]
[1732000443669,3.53789044,3121.5,3120.9,3.99949]
[1732000443888,0.35378904,3121.4,3121.2,0.00583771]
[1732000444202,3.20379,3121.3,3121.2,0.00583771]
[1732000444660,3.20411,3121.0,3120.5,0.7635]
[1732000444938,3.20411,3121.0,3120.2,3.20489]
[1732000444939,3.2043,3120.8,3120.2,4.02609]
[1732000445451,3.20459,3120.6,3119.9,3.5248]
[1732000445726,3.20459,3120.6,3119.9,38.5248]
[1732000446150,3.20475,3120.4,3119.9,0.3196]
[1732000446282,4.00895,3120.4,3119.9,0.3196]
[1732000446483,3.20484,3120.3,3119.8,0.3196]
[1732000446685,0.36506019,3120.4,3119.8,0.3196]
[1732000446885,3.99118,3120.7,3120.0,3.20505]
[1732000447100,3.99118,3120.7,3120.0,3.20512]
[1732000447339,3.20461,3120.5,3119.8,3.52491]
[1732000447849,3.20461,3120.5,3119.9,3.20522]
[1732000448161,3.99113,3120.7,3119.9,3.20522]
[1732000448325,0.7867,3120.7,3120.1,3.20502]
[1732000448502,3.20416,3121.0,3120.2,0.7765]
[1732000448704,0.807,3121.1,3120.2,0.7765]
[1732000448705,0.321416,3120.9,3120.5,3.2046]
[1732000448954,4.01101,3121.1,3120.5,3.2046]
[1732000449242,3.2038,3121.3,3120.6,3.20443]
[1732000449445,4.01071,3121.4,3120.4,3.20464]
[1732000449619,3.20401,3121.1,3120.4,3.20464]
[1732000449938,3.20385,3121.3,3120.4,3.20464]
[1732000450454,0.807,3121.4,3120.2,1.0961]
[1732000450609,0.807,3121.4,3120.8,3.20423]
[1732000450937,3.20386,3121.3,3120.6,3.20451]
[1732000451095,0.807,3121.4,3120.6,3.20451]
[1732000451517,3.20379,3121.3,3120.6,3.20451]
[1732000452070,3.20391,3121.2,3120.6,3.20451]
[1732000453161,4.01075,3121.4,3120.7,3.2044]
[1732000454629,3.20381,3121.3,3120.7,3.2044]
[1732000455239,3.20381,3121.3,3120.5,3.52421]
[1732000455422,3.20381,3121.3,3120.7,0.3196]
[1732000456083,0.795,3121.2,3120.7,0.3196]
[1732000456677,0.33429578,3121.1,3120.7,0.3196]
[1732000456953,3.53835578,3121.1,3120.6,0.3196]
[1732000457496,3.20417,3121.0,3120.6,0.3196]
[1732000457867,3.20417,3121.0,3120.4,0.3196]
[1732000458069,0.35384658,3120.9,3120.4,0.3196]
[1732000459549,1.3054,3120.8,3120.1,3.205]
[1732000460095,4.5097,3120.8,3119.9,3.52479]
[1732000460301,4.5097,3120.8,3120.2,4.31242]
[1732000460609,1.3054,3120.8,3120.2,4.31242]
[1732000461196,4.50971,3120.8,3120.2,4.31242]
[1732000461554,3.20442,3120.7,3120.2,0.3196]
[1732000461799,4.50971,3120.8,3120.2,0.3196]
[1732000461967,4.50971,3120.8,3120.2,3.52451]
[1732000463322,1.3054,3120.8,3120.2,3.52451]
[1732000463610,4.50976,3120.8,3120.2,3.52445]
[1732000463752,0.55,3120.6,3120.2,0.3196]
[1732000463956,3.20462,3120.5,3120.2,0.3196]
[1732000464156,0.55,3120.6,3120.2,0.3196]
[1732000464609,6.75442,3120.7,3120.2,0.3196]
[1732000465479,6.75442,3120.7,3120.0,0.3196]
[1732000465684,3.20456,3120.6,3120.0,0.3196]
[1732000465884,6.75442,3120.7,3120.0,0.3196]
[1732000466088,6.75442,3120.7,3120.1,3.52455]
[1732000466600,0.55,3120.7,3120.3,0.3196]
[1732000466818,0.7838,3120.5,3120.3,0.3196]
[1732000467106,3.7838,3120.5,3120.3,0.3196]
[1732000467501,3.7838,3120.5,3120.0,0.3196]